[Event "13 ème Rapide Isle 2019"]
[Site "Isle, France"]
[Date "????.??.??"]
[Round "4.3"]
[White "Lauferon, Augustin"]
[Black "Selebran, Henri"]
[Result "0-1"]
[TimeControl "15'+5''"]
[WhiteElo "1854"]
[BlackElo "2109"]

1. e4 {[%clk 00:15:09]} e5 {[%clk 00:15:08]} {[%emt 00:00:02]} 2. Nf3 {[%clk
00:15:13]} {[%emt 00:00:02]} Nc6 {[%clk 00:15:11]} {[%emt 00:00:01]} 3. d4
{[%clk 00:15:17]} exd4 {[%clk 00:15:14]} {[%emt 00:00:03]} 4. Bc4 {[%clk
00:15:22]} Bb4+ {[%clk 00:15:10]} {[%emt 00:00:09]} 5. c3 {[%clk 00:14:37]}
{[%emt 00:00:51]} dxc3 {[%clk 00:15:09]} {[%emt 00:00:04]} 6. bxc3 {[%clk
00:14:41]} {[%emt 00:00:02]} Ba5 {[%clk 00:13:26]} {[%emt 00:01:48]} 7. Qd5
{[%clk 00:09:53]} {[%emt 00:04:53]} Qe7 {[%clk 00:12:35]} {[%emt 00:00:56]} 8.
Bg5 {[%clk 00:08:30]} {[%emt 00:01:28]} Nf6 {[%clk 00:11:42]} {[%emt 00:00:57]}
9. Bxf6 {[%clk 00:06:30]} {[%emt 00:02:06]} Qxf6 {[%clk 00:11:24]} {[%emt
00:00:23]} 10. O-O {[%clk 00:05:57]} {[%emt 00:00:38]} O-O {[%clk 00:10:36]}
{[%emt 00:00:52]} 11. e5 {[%clk 00:05:34]} {[%emt 00:00:29]} Qf4 {[%clk
00:09:29]} {[%emt 00:01:11]} 12. g3 {[%clk 00:04:02]} {[%emt 00:01:39]} Qg4
{[%clk 00:08:55]} {[%emt 00:00:38]} 13. Kg2 {[%clk 00:04:04]} {[%emt 00:00:04]}
d6 {[%clk 00:08:22]} {[%emt 00:00:38]} 14. Be2 {[%clk 00:03:16]} {[%emt
00:00:53]} Be6 {[%clk 00:07:49]} {[%emt 00:00:38]} 15. Qb5 {[%clk 00:03:21]}
dxe5 {[%clk 00:07:00]} {[%emt 00:00:54]} 16. Nxe5 {[%clk 00:03:15]} {[%emt
00:00:12]} Qe4+ {[%clk 00:06:25]} {[%emt 00:00:39]} 17. Bf3 {[%clk 00:02:18]}
{[%emt 00:01:03]} Qxe5 {[%clk 00:06:17]} {[%emt 00:00:13]} 18. Bxc6 {[%clk
00:02:22]} Qxb5 {[%clk 00:06:04]} {[%emt 00:00:18]} 19. Bxb5 {[%clk 00:02:26]}
{[%emt 00:00:01]} Rad8 {[%clk 00:05:50]} {[%emt 00:00:18]} 20. a4 {[%clk
00:01:57]} {[%emt 00:00:35]} Rd6 {[%clk 00:05:30]} {[%emt 00:00:24]} 21. Be2
{[%clk 00:01:44]} {[%emt 00:00:19]} Rfd8 {[%clk 00:05:19]} {[%emt 00:00:15]} 22.
c4 {[%clk 00:01:35]} {[%emt 00:00:15]} c5 {[%clk 00:04:27]} {[%emt 00:00:56]}
23. Na3 {[%clk 00:01:38]} {[%emt 00:00:02]} a6 {[%clk 00:04:13]} {[%emt
00:00:19]} 24. Rab1 {[%clk 00:01:43]} Bb4 {[%clk 00:03:55]} {[%emt 00:00:22]}
25. Nc2 {[%clk 00:01:35]} {[%emt 00:00:14]} Bf5 {[%clk 00:03:31]} {[%emt
00:00:29]} 26. Nxb4 {[%clk 00:01:20]} {[%emt 00:00:20]} Bxb1 {[%clk 00:03:24]}
{[%emt 00:00:12]} 27. Rxb1 {[%clk 00:01:20]} {[%emt 00:00:05]} Rb6 {[%clk
00:03:16]} {[%emt 00:00:12]} 28. Nc6 {[%clk 00:01:11]} {[%emt 00:00:16]} Rxb1
{[%clk 00:03:11]} {[%emt 00:00:09]} 29. Nxd8 {[%clk 00:01:14]} {[%emt
00:00:01]} Kf8 {[%clk 00:02:55]} {[%emt 00:00:22]} 30. Bf3 {[%clk 00:01:19]} b6
{[%clk 00:02:30]} {[%emt 00:00:30]} 31. Nc6 {[%clk 00:00:58]} {[%emt 00:00:26]}
Ra1 {[%clk 00:02:14]} {[%emt 00:00:20]} 32. Bd5 {[%clk 00:01:00]} {[%emt
00:00:04]} Rxa4 {[%clk 00:02:10]} {[%emt 00:00:09]} 33. Nd8 {[%clk 00:00:59]}
{[%emt 00:00:06]} b5 {[%clk 00:01:52]} {[%emt 00:00:22]} 34. cxb5 {[%clk
00:00:57]} {[%emt 00:00:08]} axb5 {[%clk 00:01:45]} {[%emt 00:00:12]} 35. Kf1
{[%clk 00:00:45]} {[%emt 00:00:17]} Rd4 {[%clk 00:01:44]} {[%emt 00:00:06]} 36.
Bc6 {[%clk 00:00:40]} {[%emt 00:00:10]} b4 {[%clk 00:01:29]} {[%emt 00:00:19]}
37. Nb7 {[%clk 00:00:43]} {[%emt 00:00:03]} b3 {[%clk 00:01:25]} {[%emt
00:00:09]} 38. f3 {[%clk 00:00:09]} {[%emt 00:00:39]} b2 {[%clk 00:01:24]}
{[%emt 00:00:05]} 39. Kg2 {[%clk 00:00:12]} {[%emt 00:00:04]} b1=Q {[%clk
00:01:23]} {[%emt 00:00:05]} 40. Nxc5 {[%clk 00:00:15]} {[%emt 00:00:02]} Qc2+
{[%clk 00:01:25]} {[%emt 00:00:03]} 0-1

[Event "13 ème Rapide Isle 2019"]
[Site "Isle, France"]
[Date "????.??.??"]
[Round "4.4"]
[White "Chamaillard, Sylvain"]
[Black "Dechaud, Nathan"]
[Result "1-0"]
[TimeControl "15'+5''"]
[WhiteElo "2033"]
[BlackElo "1450"]

1. d4 {[%clk 00:13:08]} {[%emt 00:01:54]} Nf6 {[%clk 00:15:09]} {[%emt
00:00:09]} 2. Nf3 {[%clk 00:13:09]} {[%emt 00:00:04]} g6 {[%clk 00:14:44]}
{[%emt 00:00:29]} 3. c4 {[%clk 00:13:12]} {[%emt 00:00:02]} Bg7 {[%clk
00:14:48]} {[%emt 00:00:03]} 4. Nc3 {[%clk 00:13:16]} O-O {[%clk 00:14:30]}
{[%emt 00:00:22]} 5. e4 {[%clk 00:13:18]} {[%emt 00:00:02]} d6 {[%clk
00:14:35]} {[%emt 00:00:01]} 6. Be2 {[%clk 00:13:21]} {[%emt 00:00:02]} e5
{[%clk 00:13:37]} {[%emt 00:01:03]} 7. O-O {[%clk 00:13:21]} {[%emt 00:00:04]}
Nc6 {[%clk 00:13:36]} {[%emt 00:00:07]} 8. d5 {[%clk 00:13:24]} {[%emt
00:00:02]} Ne7 {[%clk 00:13:39]} {[%emt 00:00:02]} 9. b4 {[%clk 00:13:25]}
{[%emt 00:00:04]} Ne8 {[%clk 00:13:14]} {[%emt 00:00:30]} 10. c5 {[%clk
00:13:19]} {[%emt 00:00:11]} f5 {[%clk 00:12:27]} {[%emt 00:00:53]} 11. Nd2
{[%clk 00:13:22]} {[%emt 00:00:02]} Nf6 {[%clk 00:11:15]} {[%emt 00:01:17]} 12.
f3 {[%clk 00:13:25]} {[%emt 00:00:02]} c6 {[%clk 00:09:48]} {[%emt 00:01:32]}
13. cxd6 {[%clk 00:13:15]} {[%emt 00:00:14]} Qxd6 {[%clk 00:09:44]} {[%emt
00:00:10]} 14. Nc4 {[%clk 00:12:53]} {[%emt 00:00:25]} Qxb4 {[%clk 00:09:25]}
{[%emt 00:00:25]} 15. Qc2 {[%clk 00:12:45]} {[%emt 00:00:13]} Qc5+ {[%clk
00:08:03]} {[%emt 00:01:26]} 16. Be3 {[%clk 00:12:46]} {[%emt 00:00:04]} Qxe3+
{[%clk 00:06:46]} {[%emt 00:01:23]} 17. Nxe3 {[%clk 00:12:49]} {[%emt
00:00:02]} f4 {[%clk 00:06:51]} 18. Nc4 {[%clk 00:11:02]} {[%emt 00:01:52]}
cxd5 {[%clk 00:06:51]} {[%emt 00:00:05]} 19. Nxe5 {[%clk 00:10:55]} {[%emt
00:00:12]} Be6 {[%clk 00:06:27]} {[%emt 00:00:29]} 20. Nd3 {[%clk 00:09:31]}
{[%emt 00:01:28]} Rac8 {[%clk 00:06:16]} {[%emt 00:00:16]} 21. Qb3 {[%clk
00:09:17]} {[%emt 00:00:19]} Nd7 {[%clk 00:04:44]} {[%emt 00:01:38]} 22. Rac1
{[%clk 00:09:04]} {[%emt 00:00:18]} Nc5 {[%clk 00:04:12]} {[%emt 00:00:37]} 23.
Nxc5 {[%clk 00:09:05]} {[%emt 00:00:04]} Rxc5 {[%clk 00:04:15]} {[%emt
00:00:02]} 24. Nxd5 {[%clk 00:08:58]} {[%emt 00:00:11]} Nxd5 {[%clk 00:02:03]}
{[%emt 00:02:17]} 25. Rxc5 {[%clk 00:08:48]} {[%emt 00:00:15]} Bd4+ {[%clk
00:02:06]} {[%emt 00:00:02]} 26. Kh1 {[%clk 00:08:52]} Bxc5 {[%clk 00:02:11]}
27. exd5 {[%clk 00:08:55]} {[%emt 00:00:01]} Bf7 {[%clk 00:02:05]} {[%emt
00:00:09]} 28. Qxb7 {[%clk 00:08:40]} {[%emt 00:00:21]} Re8 {[%clk 00:01:57]}
{[%emt 00:00:14]} 29. Bb5 {[%clk 00:08:20]} {[%emt 00:00:26]} Rd8 {[%clk
00:01:41]} {[%emt 00:00:21]} 30. Qc7 {[%clk 00:08:14]} {[%emt 00:00:10]} Bb6
{[%clk 00:01:03]} {[%emt 00:00:43]} 31. Qxf4 {[%clk 00:08:17]} {[%emt
00:00:02]} Rxd5 {[%clk 00:00:57]} {[%emt 00:00:11]} 32. Bc4 {[%clk 00:07:52]}
{[%emt 00:00:30]} Rf5 {[%clk 00:01:01]} 33. Bxf7+ {[%clk 00:07:50]} {[%emt
00:00:06]} Rxf7 {[%clk 00:00:53]} {[%emt 00:00:13]} 34. Qe4 {[%clk 00:07:53]}
{[%emt 00:00:02]} Kg7 {[%clk 00:00:51]} {[%emt 00:00:06]} 35. Rd1 {[%clk
00:07:56]} {[%emt 00:00:03]} Rc7 {[%clk 00:00:25]} {[%emt 00:00:31]} 36. Qe6
{[%clk 00:07:58]} {[%emt 00:00:08]} Rc5 {[%clk 00:00:13]} {[%emt 00:00:22]} 37.
Rd7+ {[%clk 00:07:46]} {[%emt 00:00:17]} Kh6 {[%clk 00:00:15]} {[%emt
00:00:04]} 38. Qe3+ {[%clk 00:07:38]} {[%emt 00:00:13]} g5 {[%clk 00:00:00]}
{[%emt 00:00:17]} 39. Rd6+ {[%clk 00:07:38]} Kg7 {[%clk 00:00:00]} {[%emt
00:00:06]} 1-0

[Event "13 ème Rapide Isle 2019"]
[Site "Isle, France"]
[Date "????.??.??"]
[Round "5.1"]
[White "Fritschy, Frits"]
[Black "Girel, Joseph"]
[Result "0-1"]
[TimeControl "15'+5''"]
[WhiteElo "2074"]
[BlackElo "2146"]

1. d4 {[%clk 00:15:07]} {[%emt 00:00:02]} Nf6 {[%clk 00:15:08]} {[%emt
00:00:03]} 2. c4 {[%clk 00:15:11]} e6 {[%clk 00:15:08]} {[%emt 00:00:05]} 3.
Nf3 {[%clk 00:15:14]} {[%emt 00:00:02]} d5 {[%clk 00:15:11]} {[%emt 00:00:02]}
4. g3 {[%clk 00:15:12]} {[%emt 00:00:06]} Bb4+ {[%clk 00:14:57]} {[%emt
00:00:19]} 5. Bd2 {[%clk 00:15:10]} {[%emt 00:00:07]} Be7 {[%clk 00:15:00]}
{[%emt 00:00:02]} 6. Bg2 {[%clk 00:15:08]} {[%emt 00:00:07]} O-O {[%clk
00:15:02]} {[%emt 00:00:04]} 7. O-O {[%clk 00:14:57]} {[%emt 00:00:16]} c6
{[%clk 00:15:04]} {[%emt 00:00:02]} 8. Qb3 {[%clk 00:14:00]} {[%emt 00:01:02]}
b6 {[%clk 00:14:50]} {[%emt 00:00:20]} 9. Nc3 {[%clk 00:13:54]} {[%emt
00:00:11]} Ba6 {[%clk 00:14:40]} {[%emt 00:00:15]} 10. cxd5 {[%clk 00:13:30]}
{[%emt 00:00:29]} cxd5 {[%clk 00:14:40]} {[%emt 00:00:05]} 11. Rfc1 {[%clk
00:11:48]} {[%emt 00:01:47]} Bc4 {[%clk 00:13:13]} {[%emt 00:01:32]} 12. Qd1
{[%clk 00:11:46]} {[%emt 00:00:06]} Nbd7 {[%clk 00:12:50]} {[%emt 00:00:28]} 13.
b3 {[%clk 00:11:09]} {[%emt 00:00:42]} Ba6 {[%clk 00:12:53]} {[%emt 00:00:02]}
14. a4 {[%clk 00:11:12]} {[%emt 00:00:02]} Ne8 {[%clk 00:11:23]} {[%emt
00:01:35]} 15. e3 {[%clk 00:10:47]} {[%emt 00:00:30]} Nd6 {[%clk 00:11:22]}
{[%emt 00:00:07]} 16. Bf1 {[%clk 00:10:40]} {[%emt 00:00:11]} Bxf1 {[%clk
00:11:23]} {[%emt 00:00:04]} 17. Qxf1 {[%clk 00:10:44]} {[%emt 00:00:01]} Qb8
{[%clk 00:10:48]} {[%emt 00:00:40]} 18. Nb5 {[%clk 00:09:55]} {[%emt 00:00:54]}
Rc8 {[%clk 00:07:14]} {[%emt 00:03:39]} 19. Rxc8+ {[%clk 00:09:51]} {[%emt
00:00:10]} Nxc8 {[%clk 00:06:58]} {[%emt 00:00:21]} 20. Rc1 {[%clk 00:09:40]}
{[%emt 00:00:16]} Bd8 {[%clk 00:06:12]} {[%emt 00:00:51]} 21. Rc2 {[%clk
00:08:13]} {[%emt 00:01:32]} a6 {[%clk 00:06:13]} {[%emt 00:00:04]} 22. Nc3
{[%clk 00:08:06]} {[%emt 00:00:13]} Nd6 {[%clk 00:05:58]} {[%emt 00:00:20]} 23.
Na2 {[%clk 00:07:34]} {[%emt 00:00:37]} b5 {[%clk 00:04:59]} {[%emt 00:01:04]}
24. axb5 {[%clk 00:06:46]} {[%emt 00:00:52]} axb5 {[%clk 00:04:52]} {[%emt
00:00:13]} 25. Nb4 {[%clk 00:06:42]} {[%emt 00:00:09]} Qb7 {[%clk 00:04:43]}
{[%emt 00:00:14]} 26. Nc6 {[%clk 00:05:22]} {[%emt 00:01:25]} Bf6 {[%clk
00:04:23]} {[%emt 00:00:25]} 27. Bb4 {[%clk 00:05:14]} {[%emt 00:00:13]} Ne4
{[%clk 00:03:46]} {[%emt 00:00:43]} 28. Kg2 {[%clk 00:04:48]} {[%emt 00:00:30]}
h6 {[%clk 00:02:48]} {[%emt 00:01:03]} 29. Nfe5 {[%clk 00:04:41]} {[%emt
00:00:12]} Bxe5 {[%clk 00:02:28]} {[%emt 00:00:26]} 30. Nxe5 {[%clk 00:04:22]}
{[%emt 00:00:24]} Nxe5 {[%clk 00:02:12]} {[%emt 00:00:21]} 31. dxe5 {[%clk
00:04:25]} {[%emt 00:00:01]} d4 {[%clk 00:02:07]} {[%emt 00:00:10]} 32. f3
{[%clk 00:03:53]} {[%emt 00:00:36]} dxe3 {[%clk 00:01:51]} {[%emt 00:00:21]} 33.
Be1 {[%clk 00:02:32]} {[%emt 00:01:25]} Ra1 {[%clk 00:01:40]} {[%emt 00:00:17]}
34. Qe2 {[%clk 00:02:09]} {[%emt 00:00:27]} Ng5 {[%clk 00:01:36]} {[%emt
00:00:09]} 35. h4 {[%clk 00:02:03]} {[%emt 00:00:11]} Rxe1 {[%clk 00:01:13]}
{[%emt 00:00:28]} 36. Qxe1 {[%clk 00:01:46]} {[%emt 00:00:22]} Nxf3 {[%clk
00:01:16]} {[%emt 00:00:02]} 37. Rc8+ {[%clk 00:00:49]} {[%emt 00:01:03]} Qxc8
{[%clk 00:01:16]} {[%emt 00:00:05]} 38. Kxf3 {[%clk 00:00:52]} {[%emt
00:00:02]} Qc5 {[%clk 00:00:30]} {[%emt 00:00:51]} 39. Qxe3 {[%clk 00:00:55]}
{[%emt 00:00:03]} Qd5+ {[%clk 00:00:31]} {[%emt 00:00:05]} 40. Kf4 {[%clk
00:00:50]} {[%emt 00:00:09]} g6 {[%clk 00:00:27]} {[%emt 00:00:09]} 41. b4
{[%clk 00:00:34]} {[%emt 00:00:22]} Kg7 {[%clk 00:00:30]} {[%emt 00:00:02]} 42.
Qe4 {[%clk 00:00:33]} {[%emt 00:00:05]} Qd2+ {[%clk 00:00:22]} {[%emt
00:00:13]} 43. Kf3 {[%clk 00:00:35]} {[%emt 00:00:04]} Qc3+ {[%clk 00:00:24]}
{[%emt 00:00:04]} 44. Kf2 {[%clk 00:00:27]} {[%emt 00:00:13]} Qb2+ {[%clk
00:00:28]} 45. Kf3 {[%clk 00:00:31]} {[%emt 00:00:02]} Qc3+ {[%clk 00:00:32]}
46. Kf2 {[%clk 00:00:35]} Qd2+ {[%clk 00:00:34]} {[%emt 00:00:03]} 47. Kf3
{[%clk 00:00:38]} {[%emt 00:00:02]} Qd1+ {[%clk 00:00:37]} {[%emt 00:00:01]} 48.
Kf2 {[%clk 00:00:42]} Qb3 {[%clk 00:00:29]} {[%emt 00:00:13]} 49. Qf4 {[%clk
00:00:44]} {[%emt 00:00:04]} Qb2+ {[%clk 00:00:19]} {[%emt 00:00:15]} 50. Kf3
{[%clk 00:00:46]} {[%emt 00:00:02]} Kg8 {[%clk 00:00:20]} {[%emt 00:00:04]} 51.
h5 {[%clk 00:00:41]} {[%emt 00:00:10]} Qb3+ {[%clk 00:00:18]} {[%emt 00:00:07]}
52. Kf2 {[%clk 00:00:45]} {[%emt 00:00:01]} Qc2+ {[%clk 00:00:22]} 53. Kf3
{[%clk 00:00:49]} {[%emt 00:00:01]} Qd1+ {[%clk 00:00:26]} 54. Ke3 {[%clk
00:00:27]} {[%emt 00:00:27]} Qxh5 {[%clk 00:00:24]} {[%emt 00:00:06]} 55. Qd4
{[%clk 00:00:26]} {[%emt 00:00:07]} Qg5+ {[%clk 00:00:26]} {[%emt 00:00:03]} 56.
Kf3 {[%clk 00:00:14]} {[%emt 00:00:17]} Qf5+ {[%clk 00:00:31]} 57. Ke3 {[%clk
00:00:18]} Qf1 {[%clk 00:00:25]} {[%emt 00:00:11]} 58. Qd8+ {[%clk 00:00:16]}
{[%emt 00:00:07]} Kg7 {[%clk 00:00:29]} 59. Qe7 {[%clk 00:00:09]} {[%emt
00:00:12]} Qe1+ {[%clk 00:00:25]} {[%emt 00:00:10]} 60. Kd4 {[%clk 00:00:13]}
{[%emt 00:00:01]} Qf2+ {[%clk 00:00:27]} {[%emt 00:00:02]} 61. Ke4 {[%clk
00:00:14]} {[%emt 00:00:04]} Qxg3 {[%clk 00:00:20]} {[%emt 00:00:12]} 62. Qf6+
{[%clk 00:00:18]} {[%emt 00:00:02]} Kg8 {[%clk 00:00:25]} 63. Qd8+ {[%clk
00:00:20]} {[%emt 00:00:02]} Kh7 {[%clk 00:00:29]} 64. Qd7 {[%clk 00:00:20]}
{[%emt 00:00:05]} Qg2+ {[%clk 00:00:21]} {[%emt 00:00:13]} 65. Ke3 {[%clk
00:00:23]} {[%emt 00:00:03]} Qg1+ {[%clk 00:00:23]} {[%emt 00:00:03]} 66. Ke2
{[%clk 00:00:26]} Qg4+ {[%clk 00:00:27]} {[%emt 00:00:01]} 67. Ke3 {[%clk
00:00:31]} Qg3+ {[%clk 00:00:18]} {[%emt 00:00:14]} 68. Ke2 {[%clk 00:00:35]}
{[%emt 00:00:01]} Qxe5+ {[%clk 00:00:21]} 69. Kd3 {[%clk 00:00:37]} {[%emt
00:00:03]} Qd5+ {[%clk 00:00:17]} {[%emt 00:00:09]} 0-1

[Event "13 ème Rapide Isle 2019"]
[Site "Isle, France"]
[Date "????.??.??"]
[Round "5.2"]
[White "Bedouin, Xavier"]
[Black "Chamaillard, Sylvain"]
[Result "1/2-1/2"]
[TimeControl "15'+5''"]
[WhiteElo "2295"]
[BlackElo "2033"]

1. e4 {[%clk 00:15:07]} {[%emt 00:00:03]} c5 {[%clk 00:15:08]} {[%emt
00:00:03]} 2. c3 {[%clk 00:15:00]} {[%emt 00:00:11]} d6 {[%clk 00:15:10]}
{[%emt 00:00:03]} 3. d4 {[%clk 00:15:03]} {[%emt 00:00:02]} Nf6 {[%clk
00:15:14]} {[%emt 00:00:02]} 4. Bd3 {[%clk 00:15:06]} {[%emt 00:00:02]} Nc6
{[%clk 00:15:15]} {[%emt 00:00:04]} 5. Nf3 {[%clk 00:15:08]} {[%emt 00:00:02]}
e5 {[%clk 00:15:13]} {[%emt 00:00:07]} 6. dxe5 {[%clk 00:14:41]} {[%emt
00:00:32]} Nxe5 {[%clk 00:15:08]} {[%emt 00:00:10]} 7. Bb5+ {[%clk 00:14:02]}
{[%emt 00:00:43]} Bd7 {[%clk 00:15:08]} {[%emt 00:00:05]} 8. Bxd7+ {[%clk
00:14:00]} {[%emt 00:00:08]} Qxd7 {[%clk 00:15:11]} {[%emt 00:00:03]} 9. O-O
{[%clk 00:13:58]} {[%emt 00:00:06]} Be7 {[%clk 00:14:36]} {[%emt 00:00:40]} 10.
Re1 {[%clk 00:12:20]} {[%emt 00:01:43]} O-O {[%clk 00:14:37]} {[%emt 00:00:04]}
11. Na3 {[%clk 00:12:09]} {[%emt 00:00:16]} Rad8 {[%clk 00:13:49]} {[%emt
00:00:53]} 12. Nxe5 {[%clk 00:09:25]} {[%emt 00:02:49]} dxe5 {[%clk 00:13:51]}
{[%emt 00:00:02]} 13. Qxd7 {[%clk 00:09:19]} {[%emt 00:00:12]} Nxd7 {[%clk
00:13:52]} {[%emt 00:00:04]} 14. Be3 {[%clk 00:09:16]} {[%emt 00:00:08]} a6
{[%clk 00:13:42]} {[%emt 00:00:15]} 15. Nc4 {[%clk 00:08:05]} {[%emt 00:01:16]}
b5 {[%clk 00:11:50]} {[%emt 00:01:57]} 16. Na5 {[%clk 00:08:06]} {[%emt
00:00:03]} Nb8 {[%clk 00:11:54]} {[%emt 00:00:02]} 17. Rad1 {[%clk 00:07:50]}
{[%emt 00:00:21]} f6 {[%clk 00:10:22]} {[%emt 00:01:37]} 18. f3 {[%clk
00:07:34]} {[%emt 00:00:21]} Kf7 {[%clk 00:10:23]} {[%emt 00:00:04]} 19. c4
{[%clk 00:06:57]} {[%emt 00:00:43]} Ke6 {[%clk 00:08:35]} {[%emt 00:01:53]} 20.
Kf2 {[%clk 00:06:13]} {[%emt 00:00:49]} Rc8 {[%clk 00:08:04]} {[%emt 00:00:36]}
21. Rc1 {[%clk 00:06:15]} {[%emt 00:00:03]} Nc6 {[%clk 00:07:47]} {[%emt
00:00:22]} 22. Nxc6 {[%clk 00:06:11]} {[%emt 00:00:09]} Rxc6 {[%clk 00:07:51]}
{[%emt 00:00:01]} 23. Red1 {[%clk 00:06:08]} {[%emt 00:00:08]} Rfc8 {[%clk
00:07:25]} {[%emt 00:00:30]} 24. Rd5 {[%clk 00:06:01]} {[%emt 00:00:12]} Rb8
{[%clk 00:06:25]} {[%emt 00:01:04]} 25. cxb5 {[%clk 00:04:44]} {[%emt
00:01:23]} Rxb5 {[%clk 00:06:24]} {[%emt 00:00:07]} 26. b3 {[%clk 00:04:42]}
{[%emt 00:00:07]} a5 {[%clk 00:05:38]} {[%emt 00:00:50]} 27. Rc4 {[%clk
00:04:07]} {[%emt 00:00:39]} Rb4 {[%clk 00:05:32]} {[%emt 00:00:12]} 28. Rxb4
{[%clk 00:03:17]} {[%emt 00:00:55]} axb4 {[%clk 00:05:32]} {[%emt 00:00:05]} 29.
Ke2 {[%clk 00:03:10]} {[%emt 00:00:11]} c4 {[%clk 00:05:26]} {[%emt 00:00:11]}
30. bxc4 {[%clk 00:02:16]} {[%emt 00:01:00]} Rxc4 {[%clk 00:05:29]} 31. Rd2
{[%clk 00:02:15]} {[%emt 00:00:06]} f5 {[%clk 00:05:22]} {[%emt 00:00:13]} 32.
exf5+ {[%clk 00:02:13]} {[%emt 00:00:06]} Kxf5 {[%clk 00:05:24]} {[%emt
00:00:02]} 33. Kd1 {[%clk 00:01:26]} {[%emt 00:00:53]} Rc3 {[%clk 00:05:19]}
{[%emt 00:00:10]} 34. Ke2 {[%clk 00:01:17]} {[%emt 00:00:14]} b3 {[%clk
00:04:57]} {[%emt 00:00:27]} 35. axb3 {[%clk 00:01:07]} {[%emt 00:00:15]} Rxb3
{[%clk 00:05:00]} {[%emt 00:00:02]} 36. Rc2 {[%clk 00:01:03]} {[%emt 00:00:09]}
h5 {[%clk 00:04:49]} {[%emt 00:00:16]} 37. h3 {[%clk 00:00:52]} {[%emt
00:00:16]} Bf6 {[%clk 00:04:44]} {[%emt 00:00:10]} 38. g4+ {[%clk 00:00:30]}
{[%emt 00:00:26]} hxg4 {[%clk 00:04:47]} {[%emt 00:00:02]} 39. hxg4+ {[%clk
00:00:34]} {[%emt 00:00:02]} Ke6 {[%clk 00:04:46]} {[%emt 00:00:06]} 40. Rc7
{[%clk 00:00:34]} {[%emt 00:00:05]} Rb2+ {[%clk 00:04:41]} {[%emt 00:00:10]} 41.
Kd3 {[%clk 00:00:28]} {[%emt 00:00:11]} Rb3+ {[%clk 00:04:44]} {[%emt
00:00:02]} 42. Ke2 {[%clk 00:00:31]} {[%emt 00:00:02]} Ra3 {[%clk 00:04:33]}
{[%emt 00:00:16]} 43. g5 {[%clk 00:00:29]} {[%emt 00:00:07]} Ra2+ {[%clk
00:04:22]} {[%emt 00:00:16]} 44. Kd3 {[%clk 00:00:31]} {[%emt 00:00:02]} Ra3+
{[%clk 00:04:25]} {[%emt 00:00:02]} 45. Ke2 {[%clk 00:00:33]} {[%emt 00:00:04]}
Ra2+ {[%clk 00:04:28]} {[%emt 00:00:02]} 46. Kf1 {[%clk 00:00:36]} {[%emt
00:00:02]} Be7 {[%clk 00:04:07]} {[%emt 00:00:26]} 47. g6 {[%clk 00:00:12]}
{[%emt 00:00:29]} Bf6 {[%clk 00:03:49]} {[%emt 00:00:24]} 48. Bf2 {[%clk
00:00:07]} {[%emt 00:00:10]} Ra4 {[%clk 00:03:48]} {[%emt 00:00:06]} 49. Kg2
{[%clk 00:00:09]} {[%emt 00:00:03]} e4 {[%clk 00:03:45]} {[%emt 00:00:08]} 50.
fxe4 {[%clk 00:00:10]} {[%emt 00:00:04]} Rxe4 {[%clk 00:03:49]} {[%emt
00:00:01]} 51. Kf3 {[%clk 00:00:12]} {[%emt 00:00:03]} Ra4 {[%clk 00:03:51]}
{[%emt 00:00:02]} 52. Rc1 {[%clk 00:00:07]} {[%emt 00:00:11]} Ke7 {[%emt
00:00:04]} 53. Ke4 {[%emt 00:01:07]} Ke8+ {[%emt 00:00:06]} 1/2-1/2